[Event "*** Titled Tuesday Blitz"]
[Site "Chess.com"]
[Date "2020.11.03"]
[Round "1"]
[White "vladislavkovalev"]
[Black "kleopl"]
[Result "1-0"]
[WhiteElo "2866"]
[BlackElo "2439"]
[TimeControl "180+1"]
[EndTime "10:06:40 PST"]
[Termination "vladislavkovalev won by resignation"]

1. e4 {[%clk 0:02:59.8]} 1... c5 {[%clk 0:02:59.5]} 2. Be2 {[%clk 0:03:00.2]}
2... Nc6 {[%clk 0:02:56]} 3. d3 {[%clk 0:03:01.1]} 3... g6 {[%clk 0:02:55.3]} 4.
f4 {[%clk 0:03:02]} 4... Bg7 {[%clk 0:02:55.5]} 5. Nf3 {[%clk 0:03:02.9]} 5...
e6 {[%clk 0:02:55.8]} 6. O-O {[%clk 0:03:03.7]} 6... Nge7 {[%clk 0:02:56]} 7. c3
{[%clk 0:03:04.6]} 7... O-O {[%clk 0:02:55.2]} 8. Be3 {[%clk 0:03:05.3]} 8... b6
{[%clk 0:02:54.5]} 9. d4 {[%clk 0:03:05.8]} 9... cxd4 {[%clk 0:02:52.9]} 10.
cxd4 {[%clk 0:03:06.7]} 10... d5 {[%clk 0:02:50.9]} 11. e5 {[%clk 0:03:07.3]}
11... f5 {[%clk 0:02:45.8]} 12. Nc3 {[%clk 0:03:07.1]} 12... a5 {[%clk
0:02:38.2]} 13. Rc1 {[%clk 0:03:07]} 13... Ba6 {[%clk 0:02:36]} 14. Bxa6 {[%clk
0:03:05]} 14... Rxa6 {[%clk 0:02:36.9]} 15. Qd3 {[%clk 0:03:04.5]} 15... Ra8
{[%clk 0:02:36]} 16. a3 {[%clk 0:03:05.2]} 16... Rc8 {[%clk 0:02:34.9]} 17. Nb5
{[%clk 0:03:05.3]} 17... Qd7 {[%clk 0:02:28.6]} 18. Rc3 {[%clk 0:03:04.1]} 18...
Nb8 {[%clk 0:02:24.2]} 19. Rfc1 {[%clk 0:03:03.3]} 19... Rxc3 {[%clk 0:02:24.1]}
20. Rxc3 {[%clk 0:03:04.2]} 20... Rc8 {[%clk 0:02:21.4]} 21. Nd6 {[%clk
0:03:03.5]} 21... Rxc3 {[%clk 0:02:20.8]} 22. Qxc3 {[%clk 0:03:04.4]} 22... Qc6
{[%clk 0:02:14.3]} 23. Ng5 {[%clk 0:03:02.7]} 23... Qd7 {[%clk 0:02:08.5]} 24.
Qb3 {[%clk 0:02:56.3]} 24... h6 {[%clk 0:01:39]} 25. Qxb6 {[%clk 0:02:55.9]}
25... hxg5 {[%clk 0:01:22.4]} 26. Qxb8+ {[%clk 0:02:54.8]} 26... Kh7 {[%clk
0:01:22.6]} 27. fxg5 {[%clk 0:02:54.7]} 27... Qa4 {[%clk 0:01:22.9]} 28. h3
{[%clk 0:02:41]} 28... Qd1+ {[%clk 0:01:19.6]} 29. Kh2 {[%clk 0:02:39.3]} 29...
Qd3 {[%clk 0:01:14.3]} 30. Bg1 {[%clk 0:02:36.3]} 30... f4 {[%clk 0:01:09]} 31.
Qb5 {[%clk 0:02:04.9]} 31... Qg3+ {[%clk 0:01:04.2]} 32. Kh1 {[%clk 0:02:05.6]}
32... Qxg5 {[%clk 0:00:57.2]} 33. Qe2 {[%clk 0:02:01.7]} 33... Nf5 {[%clk
0:00:52.9]} 34. Nxf5 {[%clk 0:02:01.6]} 34... Qxf5 {[%clk 0:00:53.8]} 35. Qg4
{[%clk 0:01:55.5]} 35... Qe4 {[%clk 0:00:49.7]} 36. Qxe6 {[%clk 0:01:53.3]}
36... f3 {[%clk 0:00:49.9]} 37. Qg4 {[%clk 0:01:53.4]} 37... fxg2+ {[%clk
0:00:43.7]} 38. Qxg2 {[%clk 0:01:54.3]} 38... Qe1 {[%clk 0:00:41.6]} 39. Qxd5
{[%clk 0:01:53.8]} 39... Bh6 {[%clk 0:00:41.6]} 40. Qf7+ {[%clk 0:01:51]} 40...
Kh8 {[%clk 0:00:38.6]} 41. Qf3 {[%clk 0:01:47.9]} 41... Kg7 {[%clk 0:00:31.1]}
42. Kg2 {[%clk 0:01:32.1]} 42... a4 {[%clk 0:00:28.5]} 43. Bf2 {[%clk
0:01:29.6]} 43... Qc1 {[%clk 0:00:26.2]} 44. Qf6+ {[%clk 0:01:24.1]} 44... Kh7
{[%clk 0:00:24.2]} 45. Qf7+ {[%clk 0:01:24.1]} 45... Bg7 {[%clk 0:00:23.1]} 46.
e6 {[%clk 0:01:23.6]} 46... Qg5+ {[%clk 0:00:21.9]} 47. Kh2 {[%clk 0:01:19.9]}
47... Qd2 {[%clk 0:00:11.5]} 48. e7 {[%clk 0:01:17.7]} 1-0

[Event "*** Titled Tuesday Blitz"]
[Site "Chess.com"]
[Date "2020.11.03"]
[Round "1"]
[White "Piotrek1979"]
[Black "GM_Levan_Pantsulaia"]
[Result "0-1"]
[WhiteElo "2427"]
[BlackElo "2850"]
[TimeControl "180+1"]
[EndTime "10:06:41 PST"]
[Termination "GM_Levan_Pantsulaia won by resignation"]

1. e4 {[%clk 0:03:00.2]} 1... c5 {[%clk 0:02:59]} 2. Nf3 {[%clk 0:02:58.8]} 2...
e6 {[%clk 0:02:59.2]} 3. d4 {[%clk 0:02:58.4]} 3... cxd4 {[%clk 0:03:00.1]} 4.
Nxd4 {[%clk 0:02:58.5]} 4... a6 {[%clk 0:03:00.7]} 5. Bd3 {[%clk 0:02:56.8]}
5... Nf6 {[%clk 0:02:57.1]} 6. Qe2 {[%clk 0:02:54.9]} 6... d6 {[%clk 0:02:34.8]}
7. c4 {[%clk 0:02:47.9]} 7... Nc6 {[%clk 0:02:32.2]} 8. Nxc6 {[%clk 0:02:41.2]}
8... bxc6 {[%clk 0:02:33.1]} 9. O-O {[%clk 0:02:38.2]} 9... e5 {[%clk
0:02:33.2]} 10. Nc3 {[%clk 0:02:35.1]} 10... Be7 {[%clk 0:02:33]} 11. Rd1 {[%clk
0:02:33.4]} 11... O-O {[%clk 0:02:32]} 12. Bc2 {[%clk 0:02:33.1]} 12... Qb6
{[%clk 0:02:26.9]} 13. Rb1 {[%clk 0:02:29.4]} 13... Bg4 {[%clk 0:02:26]} 14. Qd3
{[%clk 0:02:20.5]} 14... Bxd1 {[%clk 0:02:25.7]} 15. Bxd1 {[%clk 0:02:18.3]}
15... Rab8 {[%clk 0:02:23.8]} 16. Be3 {[%clk 0:02:07.6]} 16... Qc7 {[%clk
0:02:23.5]} 17. b4 {[%clk 0:02:03.6]} 17... d5 {[%clk 0:02:08.1]} 18. cxd5
{[%clk 0:01:59.1]} 18... cxd5 {[%clk 0:02:04.9]} 19. Nxd5 {[%clk 0:01:44.5]}
19... Nxd5 {[%clk 0:02:04.6]} 20. exd5 {[%clk 0:01:45.4]} 20... Rxb4 {[%clk
0:02:04.4]} 21. Rc1 {[%clk 0:01:43.4]} 21... Qd7 {[%clk 0:01:45.5]} 22. Bb3
{[%clk 0:01:35.9]} 22... a5 {[%clk 0:01:45]} 23. Bd2 {[%clk 0:01:31.8]} 23...
Rd4 {[%clk 0:01:44.3]} 24. Qe2 {[%clk 0:01:29.4]} 24... a4 {[%clk 0:01:44.3]}
25. Bc4 {[%clk 0:01:26.6]} 25... Rc8 {[%clk 0:01:41]} 26. Be3 {[%clk 0:01:22.5]}
26... Rg4 {[%clk 0:01:38.9]} 27. h3 {[%clk 0:01:07.3]} 27... Rg6 {[%clk
0:01:38.7]} 28. Kf1 {[%clk 0:00:53.7]} 28... Bg5 {[%clk 0:01:32.4]} 29. Rc2
{[%clk 0:00:52]} 29... Bxe3 {[%clk 0:01:31.9]} 30. fxe3 {[%clk 0:00:52.1]} 30...
Rb6 {[%clk 0:01:25.5]} 31. e4 {[%clk 0:00:49.5]} 31... a3 {[%clk 0:01:19.6]} 32.
Bb3 {[%clk 0:00:47.7]} 32... Rxc2 {[%clk 0:01:18.9]} 33. Qxc2 {[%clk 0:00:47.7]}
33... g6 {[%clk 0:01:17.5]} 34. Kg1 {[%clk 0:00:46.8]} 34... Qd6 {[%clk
0:01:16.1]} 35. Kh2 {[%clk 0:00:46.1]} 35... Kg7 {[%clk 0:01:15.7]} 36. Qc3
{[%clk 0:00:43.7]} 36... h5 {[%clk 0:01:15.6]} 37. h4 {[%clk 0:00:42]} 37... Rb4
{[%clk 0:01:15.4]} 38. Qc6 {[%clk 0:00:31.4]} 38... Qf6 {[%clk 0:01:06.4]} 39.
d6 {[%clk 0:00:25.3]} 39... Qxh4+ {[%clk 0:01:03]} 40. Kg1 {[%clk 0:00:24.7]}
40... Qxe4 {[%clk 0:00:58.3]} 41. Qxe4 {[%clk 0:00:11.2]} 41... Rxe4 {[%clk
0:00:57.8]} 0-1

[Event "*** Titled Tuesday Blitz"]
[Site "Chess.com"]
[Date "2020.11.03"]
[Round "1"]
[White "Alexsur1981"]
[Black "DishonorOnYourCow"]
[Result "1-0"]
[WhiteElo "2775"]
[BlackElo "2391"]
[TimeControl "180+1"]
[EndTime "10:06:44 PST"]
[Termination "Alexsur1981 won by checkmate"]

1. e4 {[%clk 0:03:00.9]} 1... e5 {[%clk 0:02:57.7]} 2. f4 {[%clk 0:03:00.4]}
2... Bc5 {[%clk 0:02:48.8]} 3. Nf3 {[%clk 0:03:00]} 3... d6 {[%clk 0:02:48.5]}
4. Bc4 {[%clk 0:02:57.8]} 4... Nf6 {[%clk 0:02:45.2]} 5. d3 {[%clk 0:02:57.6]}
5... Nc6 {[%clk 0:02:43.9]} 6. Nc3 {[%clk 0:02:57.8]} 6... Bg4 {[%clk
0:02:40.2]} 7. Na4 {[%clk 0:02:57.7]} 7... Bb6 {[%clk 0:02:10.1]} 8. Nxb6 {[%clk
0:02:56.5]} 8... axb6 {[%clk 0:02:11]} 9. h3 {[%clk 0:02:56.5]} 9... Bxf3 {[%clk
0:02:10.4]} 10. Qxf3 {[%clk 0:02:57.4]} 10... Nd4 {[%clk 0:02:05.7]} 11. Qf2
{[%clk 0:02:57.5]} 11... b5 {[%clk 0:01:57.7]} 12. Bb3 {[%clk 0:02:53]} 12...
Nxb3 {[%clk 0:01:56.1]} 13. cxb3 {[%clk 0:02:53.9]} 13... O-O {[%clk 0:01:48.6]}
14. O-O {[%clk 0:02:53.8]} 14... Nd7 {[%clk 0:01:41.7]} 15. b4 {[%clk
0:02:50.7]} 15... Qe7 {[%clk 0:01:39]} 16. f5 {[%clk 0:02:47.4]} 16... f6 {[%clk
0:01:27.2]} 17. a3 {[%clk 0:02:47.1]} 17... d5 {[%clk 0:01:23.5]} 18. Be3 {[%clk
0:02:43.8]} 18... d4 {[%clk 0:01:20]} 19. Bd2 {[%clk 0:02:43.6]} 19... Rfc8
{[%clk 0:01:16.8]} 20. Rac1 {[%clk 0:02:42.3]} 20... b6 {[%clk 0:01:12.8]} 21.
Rc6 {[%clk 0:02:42]} 21... Nb8 {[%clk 0:01:04.5]} 22. Re6 {[%clk 0:02:41.1]}
22... Qd7 {[%clk 0:01:02.6]} 23. Rc1 {[%clk 0:02:41]} 23... c5 {[%clk
0:00:47.7]} 24. Rxb6 {[%clk 0:02:37.4]} 24... c4 {[%clk 0:00:45.3]} 25. Qf1
{[%clk 0:02:31.2]} 25... c3 {[%clk 0:00:32.4]} 26. bxc3 {[%clk 0:02:30.9]} 26...
dxc3 {[%clk 0:00:32.6]} 27. Bxc3 {[%clk 0:02:31.5]} 27... Rxc3 {[%clk
0:00:31.2]} 28. Rxc3 {[%clk 0:02:30.6]} 28... Qd4+ {[%clk 0:00:31.2]} 29. Kh2
{[%clk 0:02:31.3]} 29... Qxc3 {[%clk 0:00:31.2]} 30. Rxb5 {[%clk 0:02:28.6]}
30... Nc6 {[%clk 0:00:28.8]} 31. Rc5 {[%clk 0:02:28.6]} 31... Qxa3 {[%clk
0:00:23.5]} 32. Rxc6 {[%clk 0:02:29.1]} 32... Qxb4 {[%clk 0:00:23.9]} 33. Qc1
{[%clk 0:02:28.8]} 33... h5 {[%clk 0:00:17.3]} 34. Qc4+ {[%clk 0:02:27.6]} 34...
Qxc4 {[%clk 0:00:16.7]} 35. Rxc4 {[%clk 0:02:27.3]} 35... Ra3 {[%clk 0:00:15.4]}
36. d4 {[%clk 0:02:27.5]} 36... exd4 {[%clk 0:00:15.6]} 37. Rxd4 {[%clk
0:02:28.4]} 37... Re3 {[%clk 0:00:16.1]} 38. h4 {[%clk 0:02:27.8]} 38... Kh7
{[%clk 0:00:16.4]} 39. Kg1 {[%clk 0:02:28.1]} 39... Kh6 {[%clk 0:00:15.2]} 40.
Kf2 {[%clk 0:02:28.2]} 40... Ra3 {[%clk 0:00:15.8]} 41. Rd8 {[%clk 0:02:27.6]}
41... Ra2+ {[%clk 0:00:16.1]} 42. Kf3 {[%clk 0:02:27.7]} 42... Kh7 {[%clk
0:00:16.3]} 43. Re8 {[%clk 0:02:25.5]} 43... Ra3+ {[%clk 0:00:16.5]} 44. Kf4
{[%clk 0:02:25.9]} 44... Ra2 {[%clk 0:00:16.9]} 45. g4 {[%clk 0:02:26.2]} 45...
hxg4 {[%clk 0:00:15.6]} 46. Kxg4 {[%clk 0:02:27.1]} 46... Re2 {[%clk 0:00:15.7]}
47. h5 {[%clk 0:02:24.8]} 47... Rg2+ {[%clk 0:00:15.4]} 48. Kh3 {[%clk
0:02:21.7]} 48... Re2 {[%clk 0:00:15.3]} 49. Kg3 {[%clk 0:02:19.4]} 49... Re3+
{[%clk 0:00:14.9]} 50. Kg4 {[%clk 0:02:19.3]} 50... Re2 {[%clk 0:00:15.2]} 51.
h6 {[%clk 0:02:19.8]} 51... gxh6 {[%clk 0:00:09.8]} 52. Re7+ {[%clk 0:02:20.1]}
52... Kg8 {[%clk 0:00:09.9]} 53. Kh5 {[%clk 0:02:21]} 53... Kf8 {[%clk 0:00:09]}
54. Re6 {[%clk 0:02:19.3]} 54... Kf7 {[%clk 0:00:09.4]} 55. Kg4 {[%clk
0:02:19.5]} 55... Rg2+ {[%clk 0:00:09.3]} 56. Kf3 {[%clk 0:02:19.7]} 56... Rg1
{[%clk 0:00:09.6]} 57. Ra6 {[%clk 0:02:20]} 57... Rf1+ {[%clk 0:00:09.5]} 58.
Kg3 {[%clk 0:02:19]} 58... Re1 {[%clk 0:00:09.6]} 59. Ra7+ {[%clk 0:02:18.7]}
59... Kf8 {[%clk 0:00:09.9]} 60. Kf3 {[%clk 0:02:18.6]} 60... h5 {[%clk
0:00:10.1]} 61. Rh7 {[%clk 0:02:16]} 61... Rf1+ {[%clk 0:00:08.5]} 62. Ke3
{[%clk 0:02:14.8]} 62... Re1+ {[%clk 0:00:08.5]} 63. Kd4 {[%clk 0:02:15]} 63...
Rh1 {[%clk 0:00:07.8]} 64. Kd5 {[%clk 0:02:14.8]} 64... Kg8 {[%clk 0:00:08.2]}
65. Ra7 {[%clk 0:02:14.5]} 65... h4 {[%clk 0:00:08.6]} 66. Ke6 {[%clk
0:02:14.7]} 66... h3 {[%clk 0:00:06.2]} 67. Kxf6 {[%clk 0:02:13.4]} 67... h2
{[%clk 0:00:06.3]} 68. Rg7+ {[%clk 0:02:13]} 68... Kf8 {[%clk 0:00:05.9]} 69.
Rh7 {[%clk 0:02:12.6]} 69... Kg8 {[%clk 0:00:06.3]} 70. Rg7+ {[%clk 0:02:11]}
70... Kf8 {[%clk 0:00:06.4]} 71. Rg2 {[%clk 0:02:11.5]} 71... Ke8 {[%clk
0:00:02.3]} 72. e5 {[%clk 0:02:11.6]} 72... Kf8 {[%clk 0:00:02.2]} 73. e6 {[%clk
0:02:11.5]} 73... Ke8 {[%clk 0:00:02.2]} 74. Rg8# {[%clk 0:02:11.2]} 1-0

[Event "*** Titled Tuesday Blitz"]
[Site "Chess.com"]
[Date "2020.11.03"]
[Round "1"]
[White "wannabe2700"]
[Black "talyamania"]
[Result "1-0"]
[WhiteElo "2740"]
[BlackElo "2375"]
[TimeControl "180+1"]
[EndTime "10:06:44 PST"]
[Termination "wannabe2700 won on time"]

1. e4 {[%clk 0:03:00.9]} 1... c5 {[%clk 0:02:58.8]} 2. d4 {[%clk 0:03:00.9]}
2... cxd4 {[%clk 0:02:57.7]} 3. Nf3 {[%clk 0:03:01.8]} 3... d6 {[%clk
0:02:57.4]} 4. Nxd4 {[%clk 0:03:01.9]} 4... Nf6 {[%clk 0:02:57.3]} 5. Nc3 {[%clk
0:03:02.5]} 5... a6 {[%clk 0:02:57.4]} 6. Be3 {[%clk 0:03:02.8]} 6... e5 {[%clk
0:02:57.1]} 7. Nb3 {[%clk 0:03:03.2]} 7... Be7 {[%clk 0:02:56.4]} 8. f3 {[%clk
0:03:03.8]} 8... O-O {[%clk 0:02:56.1]} 9. Qd2 {[%clk 0:03:03.6]} 9... Be6
{[%clk 0:02:54.8]} 10. O-O-O {[%clk 0:03:03.9]} 10... h5 {[%clk 0:02:54.4]} 11.
h3 {[%clk 0:03:01]} 11... h4 {[%clk 0:02:54.1]} 12. f4 {[%clk 0:03:00.1]} 12...
Nc6 {[%clk 0:02:50]} 13. Qf2 {[%clk 0:02:45.5]} 13... Rc8 {[%clk 0:02:41.5]} 14.
Kb1 {[%clk 0:02:31.9]} 14... exf4 {[%clk 0:02:25.5]} 15. Bxf4 {[%clk 0:02:31.2]}
15... Qc7 {[%clk 0:02:19.5]} 16. Bd3 {[%clk 0:02:28.6]} 16... Ne5 {[%clk
0:02:15.3]} 17. Bg5 {[%clk 0:02:27.1]} 17... b5 {[%clk 0:02:01.7]} 18. Rc1
{[%clk 0:02:07.5]} 18... b4 {[%clk 0:02:00.4]} 19. Ne2 {[%clk 0:02:07.6]} 19...
a5 {[%clk 0:01:58.8]} 20. Nbd4 {[%clk 0:02:07.5]} 20... a4 {[%clk 0:01:44]} 21.
Nxe6 {[%clk 0:02:05]} 21... fxe6 {[%clk 0:01:43.2]} 22. Qxh4 {[%clk 0:02:05.7]}
22... b3 {[%clk 0:01:31.2]} 23. cxb3 {[%clk 0:02:05.3]} 23... Qb7 {[%clk
0:01:23.6]} 24. Bc4 {[%clk 0:01:54.8]} 24... Nxc4 {[%clk 0:01:22.4]} 25. Rxc4
{[%clk 0:01:52.8]} 25... Rxc4 {[%clk 0:01:21.5]} 26. bxc4 {[%clk 0:01:53.7]}
26... Rb8 {[%clk 0:01:11.3]} 27. Bc1 {[%clk 0:01:53.4]} 27... Nxe4 {[%clk
0:01:03.1]} 28. Qg4 {[%clk 0:01:53.7]} 28... Bf6 {[%clk 0:00:45.7]} 29. Qxe6+
{[%clk 0:01:52.7]} 29... Kh8 {[%clk 0:00:44.7]} 30. Qd5 {[%clk 0:01:42.3]} 30...
Bxb2 {[%clk 0:00:31.8]} 31. Qxb7 {[%clk 0:01:36.6]} 31... Rxb7 {[%clk
0:00:30.9]} 32. Kc2 {[%clk 0:01:35.6]} 32... Be5 {[%clk 0:00:19.3]} 33. Ba3
{[%clk 0:01:31]} 33... Rf7 {[%clk 0:00:18]} 34. Rb1 {[%clk 0:01:22.3]} 34... Rf2
{[%clk 0:00:17.3]} 35. Kd3 {[%clk 0:01:23]} 35... Nf6 {[%clk 0:00:11.7]} 36. Rb4
{[%clk 0:01:17.9]} 36... Rxg2 {[%clk 0:00:10.7]} 37. Rxa4 {[%clk 0:01:18.4]}
37... Rg3+ {[%clk 0:00:09.3]} 38. Nxg3 {[%clk 0:01:18.2]} 38... Bxg3 {[%clk
0:00:08.5]} 39. Ra6 {[%clk 0:01:17.9]} 39... Nh5 {[%clk 0:00:07.2]} 40. Bxd6
{[%clk 0:01:17.4]} 40... Bf2 {[%clk 0:00:06.3]} 41. c5 {[%clk 0:01:16.5]} 41...
Nf6 {[%clk 0:00:05.4]} 42. c6 {[%clk 0:01:16.5]} 42... Nd5 {[%clk 0:00:05.6]}
43. Ra5 {[%clk 0:01:14.1]} 43... Nb6 {[%clk 0:00:04]} 44. Bc5 {[%clk 0:01:12.4]}
44... Bxc5 {[%clk 0:00:02.5]} 45. Rxc5 {[%clk 0:01:13.3]} 1-0

[Event "*** Titled Tuesday Blitz"]
[Site "Chess.com"]
[Date "2020.11.03"]
[Round "1"]
[White "RamyresCoelho"]
[Black "AleksanderHnydiuk"]
[Result "1-0"]
[WhiteElo "2051"]
[BlackElo "2476"]
[TimeControl "180+1"]
[EndTime "10:06:45 PST"]
[Termination "RamyresCoelho won by resignation"]

1. e4 {[%clk 0:03:00.9]} 1... c5 {[%clk 0:02:59.5]} 2. Nf3 {[%clk 0:03:00.7]}
2... e6 {[%clk 0:02:58.8]} 3. d4 {[%clk 0:02:59]} 3... cxd4 {[%clk 0:02:59.7]}
4. Nxd4 {[%clk 0:02:59]} 4... Nc6 {[%clk 0:03:00.2]} 5. Nc3 {[%clk 0:02:59.6]}
5... a6 {[%clk 0:02:59.4]} 6. a3 {[%clk 0:02:52.5]} 6... d6 {[%clk 0:02:55.7]}
7. Be3 {[%clk 0:02:51.5]} 7... Nf6 {[%clk 0:02:55.7]} 8. f3 {[%clk 0:02:49.9]}
8... Bd7 {[%clk 0:02:52.6]} 9. Qd2 {[%clk 0:02:49.4]} 9... b5 {[%clk 0:02:52.6]}
10. Nxc6 {[%clk 0:02:46.1]} 10... Bxc6 {[%clk 0:02:50.8]} 11. O-O-O {[%clk
0:02:47]} 11... Be7 {[%clk 0:02:37.2]} 12. g4 {[%clk 0:02:46.6]} 12... Qc7
{[%clk 0:02:36.6]} 13. h4 {[%clk 0:02:42.6]} 13... O-O {[%clk 0:02:29]} 14. g5
{[%clk 0:02:37.4]} 14... Nd7 {[%clk 0:02:28.9]} 15. h5 {[%clk 0:02:35.5]} 15...
Ne5 {[%clk 0:02:09.9]} 16. f4 {[%clk 0:02:26]} 16... Nc4 {[%clk 0:02:07.2]} 17.
Bxc4 {[%clk 0:02:26.1]} 17... bxc4 {[%clk 0:02:08.1]} 18. f5 {[%clk 0:02:22.1]}
18... exf5 {[%clk 0:02:04.6]} 19. exf5 {[%clk 0:02:23]} 19... Bxh1 {[%clk
0:02:03.5]} 20. Rxh1 {[%clk 0:02:18.6]} 20... Rfe8 {[%clk 0:01:57.1]} 21. Nd5
{[%clk 0:02:13.1]} 21... Qc6 {[%clk 0:01:54.1]} 22. Qg2 {[%clk 0:01:59.8]} 22...
Rac8 {[%clk 0:01:36.3]} 23. f6 {[%clk 0:01:50]} 23... Bf8 {[%clk 0:01:34.8]} 24.
g6 {[%clk 0:01:36.6]} 24... Re5 {[%clk 0:01:07.1]} 25. gxf7+ {[%clk 0:01:05.1]}
25... Kxf7 {[%clk 0:01:06.5]} 26. fxg7 {[%clk 0:00:57.6]} 26... Bxg7 {[%clk
0:01:07.4]} 27. Rf1+ {[%clk 0:00:50]} 27... Kg8 {[%clk 0:01:06.2]} 28. h6 {[%clk
0:00:33.1]} 28... Rc7 {[%clk 0:00:52.8]} 29. hxg7 {[%clk 0:00:27]} 29... Rf7
{[%clk 0:00:31.3]} 30. Rxf7 {[%clk 0:00:13.9]} 1-0

[Event "*** Titled Tuesday Blitz"]
[Site "Chess.com"]
[Date "2020.11.03"]
[Round "1"]
[White "Chernobay_Artem"]
[Black "Cocaino74"]
[Result "1-0"]
[WhiteElo "2629"]
[BlackElo "2309"]
[TimeControl "180+1"]
[EndTime "10:06:46 PST"]
[Termination "Chernobay_Artem won on time"]

1. d4 {[%clk 0:03:00.9]} 1... d5 {[%clk 0:02:28.6]} 2. c4 {[%clk 0:03:01.2]}
2... e6 {[%clk 0:02:28.7]} 3. Nc3 {[%clk 0:03:01.4]} 3... c6 {[%clk 0:02:29.2]}
4. e4 {[%clk 0:03:01]} 4... dxe4 {[%clk 0:02:30.1]} 5. Nxe4 {[%clk 0:03:01.8]}
5... c5 {[%clk 0:02:31]} 6. Nxc5 {[%clk 0:02:35.6]} 6... Nc6 {[%clk 0:02:30.6]}
7. Be3 {[%clk 0:02:15.1]} 7... Nf6 {[%clk 0:01:23.1]} 8. Be2 {[%clk 0:02:12.4]}
8... Qa5+ {[%clk 0:00:47.5]} 9. Qd2 {[%clk 0:01:43.1]} 9... Qxd2+ {[%clk
0:00:42.1]} 10. Kxd2 {[%clk 0:01:44]} 10... Bxc5 {[%clk 0:00:42.1]} 11. dxc5
{[%clk 0:01:44.2]} 11... O-O {[%clk 0:00:42.8]} 12. a3 {[%clk 0:01:37]} 12... a5
{[%clk 0:00:41.7]} 13. Nf3 {[%clk 0:01:32.9]} 13... a4 {[%clk 0:00:35.5]} 14.
Rhd1 {[%clk 0:01:31.5]} 14... e5 {[%clk 0:00:32.1]} 15. Ke1 {[%clk 0:01:30.3]}
15... h6 {[%clk 0:00:26.8]} 16. h3 {[%clk 0:01:02]} 16... Be6 {[%clk 0:00:25.3]}
17. Nd2 {[%clk 0:00:58.9]} 17... Rfd8 {[%clk 0:00:19.9]} 18. Bf3 {[%clk
0:00:57]} 18... e4 {[%clk 0:00:19.4]} 19. Nxe4 {[%clk 0:00:55.3]} 19... Nxe4
{[%clk 0:00:17.4]} 20. Bxe4 {[%clk 0:00:56.2]} 20... Bxc4 {[%clk 0:00:17.3]} 21.
Rd6 {[%clk 0:00:50.3]} 21... Bb3 {[%clk 0:00:10.4]} 22. Rc1 {[%clk 0:00:41.7]}
22... Rac8 {[%clk 0:00:07.2]} 23. f3 {[%clk 0:00:35.9]} 23... g6 {[%clk
0:00:07]} 24. Bxh6 {[%clk 0:00:34.4]} 24... f5 {[%clk 0:00:05.5]} 25. Bc2 {[%clk
0:00:26.2]} 25... Rxd6 {[%clk 0:00:04.4]} 26. cxd6 {[%clk 0:00:26.6]} 1-0

[Event "*** Titled Tuesday Blitz"]
[Site "Chess.com"]
[Date "2020.11.03"]
[Round "1"]
[White "chito89"]
[Black "jonaszmb"]
[Result "1-0"]
[WhiteElo "2792"]
[BlackElo "2395"]
[TimeControl "180+1"]
[EndTime "10:06:48 PST"]
[Termination "chito89 won on time"]

1. e4 {[%clk 0:02:58.1]} 1... c5 {[%clk 0:02:57.4]} 2. Nf3 {[%clk 0:02:57.6]}
2... d6 {[%clk 0:02:57.9]} 3. d4 {[%clk 0:02:54.9]} 3... cxd4 {[%clk 0:02:58.8]}
4. Nxd4 {[%clk 0:02:55.1]} 4... Nf6 {[%clk 0:02:59.4]} 5. Nc3 {[%clk 0:02:55.4]}
5... a6 {[%clk 0:02:59.7]} 6. h3 {[%clk 0:02:55.3]} 6... e5 {[%clk 0:02:56.2]}
7. Nb3 {[%clk 0:02:52.3]} 7... Be6 {[%clk 0:02:46.5]} 8. f4 {[%clk 0:02:51.2]}
8... exf4 {[%clk 0:02:32.2]} 9. Bxf4 {[%clk 0:02:52.1]} 9... Nc6 {[%clk
0:02:31]} 10. Qd2 {[%clk 0:02:51.5]} 10... Ne5 {[%clk 0:02:12.4]} 11. O-O-O
{[%clk 0:02:48.4]} 11... Rc8 {[%clk 0:02:09.5]} 12. Kb1 {[%clk 0:02:46.5]} 12...
Be7 {[%clk 0:02:07.4]} 13. g4 {[%clk 0:02:42.3]} 13... h6 {[%clk 0:01:43.6]} 14.
Nd4 {[%clk 0:02:21.2]} 14... Qb6 {[%clk 0:01:38.3]} 15. Nf5 {[%clk 0:01:52.6]}
15... Bxf5 {[%clk 0:01:36.1]} 16. exf5 {[%clk 0:01:53.5]} 16... O-O {[%clk
0:01:29.4]} 17. Be3 {[%clk 0:01:41.7]} 17... Qc7 {[%clk 0:01:13.5]} 18. g5
{[%clk 0:01:15.2]} 18... hxg5 {[%clk 0:01:13.1]} 19. Bxg5 {[%clk 0:01:16.1]}
19... Nf3 {[%clk 0:00:25.1]} 20. Qg2 {[%clk 0:01:15.6]} 20... Nxg5 {[%clk
0:00:23.7]} 21. Qxg5 {[%clk 0:01:16.5]} 21... Nd5 {[%clk 0:00:18.5]} 22. Qd2
{[%clk 0:01:14.9]} 22... Nxc3+ {[%clk 0:00:18.3]} 23. Qxc3 {[%clk 0:01:15.8]}
23... Qxc3 {[%clk 0:00:17.7]} 24. bxc3 {[%clk 0:01:16.7]} 24... Rxc3 {[%clk
0:00:17.9]} 25. Bg2 {[%clk 0:01:15.3]} 25... Rg3 {[%clk 0:00:12.3]} 26. Bd5
{[%clk 0:01:14]} 26... Rc8 {[%clk 0:00:09.1]} 27. Rhe1 {[%clk 0:01:08.1]} 27...
Bf6 {[%clk 0:00:08.9]} 28. Rd3 {[%clk 0:01:08.5]} 28... Rxd3 {[%clk 0:00:08.6]}
29. cxd3 {[%clk 0:01:09.4]} 29... b5 {[%clk 0:00:09.1]} 30. Bb7 {[%clk
0:01:01.8]} 30... Rc5 {[%clk 0:00:05.3]} 31. a3 {[%clk 0:00:57.9]} 31... Rc3
{[%clk 0:00:04.6]} 32. Re8+ {[%clk 0:00:51.9]} 32... Kh7 {[%clk 0:00:04.8]} 33.
Bd5 {[%clk 0:00:52.8]} 33... Rxd3 {[%clk 0:00:04.3]} 34. Bxf7 {[%clk 0:00:52.9]}
34... Kh6 {[%clk 0:00:03.5]} 35. h4 {[%clk 0:00:51.1]} 35... g6 {[%clk
0:00:01.7]} 36. Bxg6 {[%clk 0:00:49.4]} 36... Re3 {[%clk 0:00:01.2]} 37. Rxe3
{[%clk 0:00:46.9]} 1-0